Cogmind - Beta 11.1 *** ADVENTURER MODE // 2022.10.01 @ 12:24:55 Player: MistyLake9 Result: Destroyed by G-47 Trooper with Particle Gun Performance ------------- Evolutions (2) 1000 Regions Visited (3) 600 Robots Destroyed (47) 235 Value Destroyed (1364) 1364 Prototype IDs (2) 40 Alien Tech Used (0) 0 Bonus (19) 19 TOTAL SCORE: 3258 Bonus ------- High Alert Combat Kills 19 Cogmind --------- Core Integrity 0/550 Matter 234/300 Energy 59/100 System Corruption 0% Temperature Cool (9) Movement Core (50) Location -8/Materials Parts ------- > --- POWER (2) -------- (None) > --- PROPULSION (4) --- (None) > --- UTILITY (2) ------ Improved Targeting Computer > --- WEAPON (3) ------- (None) > --- INVENTORY (5) ---- Advanced Treads Hover Unit Cesium-ion Thruster Improved Targeting Computer Remote Datajack Peak State ------------ > --- POWER ------------ Light Nuclear Core > --- PROPULSION ------- Compact Wheel Compact Wheel Armored Wheel Armored Wheel > --- UTILITY ---------- Improved Heat Sink Improved Targeting Computer > --- WEAPON ----------- Shock Rifle Improved Medium Laser Heavy Assault Rifle > --- INVENTORY -------- Advanced Treads Improved Targeting Computer Light EM Pulse Cannon [Rating: 22] Favorites ----------- Power Light Nuclear Core Engine Ion Engine Power Core Light Nuclear Core Propulsion Hover Unit Wheel Compact Wheel Hover Unit Hover Unit Utility Improved Targeting Computer Device Improved Heat Sink Storage Small Storage Unit Processor Improved Targeting Computer Weapon Assault Rifle Energy Gun Shock Rifle Energy Cannon Light EM Pulse Cannon Ballistic Gun Assault Rifle Special Weapon Remote Datajack Build | -11 -10 -9 -8 ------- Run | Scr Mat Mat Mat Slots Evolved 4 | . . 2 2 Power 1 | . . . 1 Propulsion 2 | . . 1 1 Utility . | . . . . Weapon 1 | . . 1 . Parts Attached 46 | 6 2 18 20 Power 2 | 1 . 1 . Engine 1 | 1 . . . Core 1 | . . 1 . Reactor . | . . . . Propulsion 22 | 2 2 10 8 Treads . | . . . . Leg . | . . . . Wheel 9 | 2 . . 7 Hover 13 | . 2 10 1 Flight . | . . . . Utility 5 | 1 . 3 1 Device 1 | . . . 1 Storage 1 | 1 . . . Processor 3 | . . 3 . Hackware . | . . . . Protection . | . . . . Artifact . | . . . . Weapon 17 | 2 . 4 11 Energy Gun 4 | . . 1 3 Energy Cannon 4 | . . 1 3 Ballistic Gun 7 | 2 . 2 3 Ballistic Cannon . | . . . . Launcher . | . . . . Special Weapon 2 | . . . 2 Impact Weapon . | . . . . Slashing Weapon . | . . . . Piercing Weapon . | . . . . Special Melee Weapon . | . . . . Unidentified Prototypes 1 | . . . 1 Parts Lost 22 | . . 2 20 Power 1 | . . . 1 Propulsion 10 | . . 2 8 Utility 2 | . . . 2 Weapon 9 | . . . 9 Highest Loss Streak 7 | . . 1 7 To Critical Strikes . | . . . . Average Slot Usage (%) 77 | . 71 90 72 Engine 4 | . 14 8 . Core 4 | . . 2 6 Wheel 13 | . 1 . 22 Hover 13 | . 25 29 4 Device 2 | . . . 3 Processor 13 | . . 17 13 Energy Gun 6 | . . 1 10 Energy Cannon 2 | . . 4 2 Ballistic Gun 15 | . 28 26 7 Naked Turns . | . . . . Heaviest Build 20 | 14 14 15 20 Greatest Support 60 | 32 32 18 60 Greatest Overweight (x) 4 | 2 4 2 4 Average Overweight (x) . | . . . . Largest Inventory Capacity 8 | 8 8 5 5 Average Capacity 5 | 6 5 5 5 Most Carried 5 | 2 4 5 5 Average Carried 3 | . 3 3 3 Final Capacity 8 | 8 5 5 5 Final Carried 5 | . 4 4 5 Class Distribution -------------------- 55% | Gunner 44% | Mutant Dominant Class ---------------- Mutant | -10/Materials Gunner | -9/Materials Gunner | -8/Materials Resources | -11 -10 -9 -8 ----------- Run | Scr Mat Mat Mat Matter Collected 1107 | 202 82 471 352 Remotely . | . . . . Salvage Created 1782 | . 82 565 1135 Parts 112 | . 7 45 60 Haulers Intercepted . | . . . . Recyclers Shooed . | . . . . Parts Field Recycled . | . . . . Retrieved Matter . | . . . . Parts Self-Destructed . | . . . . Prevented . | . . . . Kills | -11 -10 -9 -8 ------- Run | Scr Mat Mat Mat Combat Hostiles Destroyed 31 | . 3 12 16 Guns 25 | . 3 11 11 Cannons 3 | . . 1 2 AOE 3 | . . . 3 Classes Destroyed 10 | . 2 4 4 Worker 2 | . . . 2 Builder 1 | . . 1 . Recycler 3 | . . . 3 Operator 3 | . . 1 2 Drone 1 | . . . 1 Watcher 8 | . 2 4 2 Swarmer 6 | . 3 3 . Grunt 18 | . . 6 12 Sentry 5 | . . 3 2 Hunter 1 | . . . 1 Best Kill Streak 4 | . 2 4 4 Combat Bots Only 3 | . 2 3 3 Max Kills in Single Turn 3 | . 2 2 3 Gunslinging 1 | . 1 1 . Exploded 2 | . . . 2 Melee . | . . . . Uniques/NPCs Destroyed . | . . . . Combat | -11 -10 -9 -8 -------- Run | Scr Mat Mat Mat Damage Taken 2313 | . 28 323 1962 Core 622 | . 8 63 551 Absorbed by Shields . | . . . . Regen/Repaired (Parts) 47 | . . 47 . Core Remaining (%) 93 | 100 96 84 . Volleys Fired 118 | . 13 30 75 Largest 3 | . 2 3 3 Hottest 162 | . 40 99 162 Shots Fired 268 | . 26 90 152 Gun 238 | . 26 86 126 Cannon 24 | . . 4 20 Launcher . | . . . . Special 6 | . . . 6 Kinetic 176 | . 26 86 64 Thermal 39 | . . . 39 Explosive . | . . . . Electromagnetic 47 | . . 4 43 Robot Hit Streak 16 | . 4 16 14 Robot Miss Streak 4 | . 4 2 2 Penetration Max . | . . . . Secondary Targets 5 | . 1 3 1 Max Gunslinging Chain 1 | . 1 1 1 Shots Hit Robots 195 | . 14 63 118 Core Hits 83 | . 6 27 50 Critical Kills . | . . . . Critical Parts Destroyed . | . . . . Critical Strikes 5 | . . 1 4 Burn 2 | . . . 2 Destroy 1 | . . 1 . Corrupt 2 | . . . 2 Melee Attacks . | . . . . Impact . | . . . . Slashing . | . . . . Piercing . | . . . . Sneak Attacks . | . . . . Combat Hostiles . | . . . . Follow-up Attacks . | . . . . Damage Inflicted 3505 | . 188 862 2455 Guns 2741 | . 188 823 1730 Cannons 472 | . . 39 433 Explosions 279 | . . . 279 Melee . | . . . . Ramming 13 | . . . 13 Kinetic 1756 | . 188 823 745 Thermal 936 | . . . 936 Explosive . | . . . . Electromagnetic 800 | . . 39 761 Impact . | . . . . Slashing . | . . . . Piercing . | . . . . Highest Corruption . | . . . . Average Corruption . | . . . . Corruption Purged . | . . . . Corruption Blocked . | . . . . Overload Shots . | . . . . Overflow Damage 9 | . . . 9 Projectiles . | . . . . Explosions 9 | . . . 9 Melee . | . . . . Knockbacks . | . . . . Impact . | . . . . Kinetic . | . . . . Secondary . | . . . . Self-Inflicted Damage 4 | . . . 4 Shots . | . . . . Rammed 8 | . . . 8 Targets Rammed 8 | . . . 8 Kicked . | . . . . Crushed . | . . . . Highest Temperature 446 | . . 122 446 Average Temperature 59 | . . 24 79 Received Heat Transfer 1632 | . . 183 1449 Effects 7 | . . . 7 Interference 5 | . . . 5 Matter Decay 1 | . . . 1 Damage (major) 1 | . . . 1 Siege Activations . | . . . . Robots Corrupted . | . . . . Combat Hostiles . | . . . . Parts Fried 4 | . . . 4 Impact Corruptions . | . . . . Robots Melted . | . . . . Combat Hostiles . | . . . . Parts Melted . | . . . . Heat Transferred 1669 | . . . 1669 Parts Sabotaged . | . . . . Parts Stolen . | . . . . Parts Stripped . | . . . . Power Chain Reactions 3 | . . . 3 Missiles Intercepted . | . . . . Alert | -11 -10 -9 -8 ------- Run | Scr Mat Mat Mat Peak Influence 426 | . 132 426 335 Initial 54 | . . 47 54 Average 175 | . 78 225 180 Maximum Alert Level 2 | . . 2 1 Low Security (%) 63 | 100 100 50 60 Level 1 33 | . . 41 39 Level 2 2 | . . 8 . Level 3 . | . . . . Level 4 . | . . . . Level 5 . | . . . . High Security . | . . . . Max Security . | . . . . Squads Dispatched 6 | . . 2 4 Investigation 3 | . . 1 2 Extermination . | . . . . Reinforcement 3 | . . 1 2 Assault . | . . . . Garrison . | . . . . Intercept . | . . . . Searches Triggered . | . . . . Construction Impeded . | . . . . Haulers Reinforced . | . . . . Active Scanning Responses . | . . . . Cargo Convoy Interrupts . | . . . . Stealth | -11 -10 -9 -8 --------- Run | Scr Mat Mat Mat Distress Signals 2 | . 1 . 1 Communications Jammed . | . . . . Distress Signals . | . . . . Times Spotted 59 | . 6 13 40 Peak Tracking Total 8 | . 3 2 8 Tactical Retreats 8 | . 1 . 7 Traps | -11 -10 -9 -8 ------- Run | Scr Mat Mat Mat Traps Triggered 4 | . 2 1 1 Indirectly . | . . . . Trap Hack Attempts . | . . . . Triggered . | . . . . Disarmed . | . . . . Reprogrammed . | . . . . Reused . | . . . . Traps Extracted . | . . . . Installed . | . . . . Triggered . | . . . . Machines | -11 -10 -9 -8 ---------- Run | Scr Mat Mat Mat Machines Disabled 1 | . . . 1 Max in Single Turn 1 | . . . 1 Machines Sabotaged . | . . . . Garrisons Compromised . | . . . . Overloaded Fab Kills . | . . . . Hacking | -11 -10 -9 -8 --------- Run | Scr Mat Mat Mat Machines Accessed 14 | . 2 9 3 Terminals 9 | . 1 7 1 Fabricators . | . . . . Repair Stations 2 | . . 2 . Recycling Units 2 | . 1 . 1 Scanalyzers 1 | . . . 1 Garrison Access . | . . . . Total Hacks 55 | . 4 34 17 Successful 49 | . 3 30 16 Failed 6 | . 1 4 1 Catastrophic . | . . . . Database Lockouts . | . . . . Manual . | . . . . Terminals 29 | . 1 24 4 Fabricators . | . . . . Repair Stations 10 | . . 10 . Recycling Units 4 | . 3 . 1 Scanalyzers 12 | . . . 12 Garrison Access . | . . . . Terminal Hacks 26 | . 1 22 3 Record 20 | . . 17 3 Emergency Access Points 1 | . . 1 . Alert Level 1 | . . 1 . Unreport Threat 1 | . . 1 . Locate Traps 1 | . 1 . . Zone Layout 2 | . . 2 . Fabricator Hacks . | . . . . Repair Station Hacks 8 | . . 8 . Scan Component 4 | . . 4 . Repair 4 | . . 4 . Recycling Unit Hacks 3 | . 2 . 1 Report Inventory 1 | . . . 1 Retrieve Components 2 | . 2 . . Scanalyzer 12 | . . . 12 Insert Component 6 | . . . 6 Analyze 6 | . . . 6 Garrison Access Hacks . | . . . . Unauthorized Hacks . | . . . . Terminals . | . . . . Fabricators . | . . . . Repair Stations . | . . . . Recycling Units . | . . . . Scanalyzers . | . . . . Garrison Access . | . . . . Data Cores Recovered . | . . . . Used . | . . . . Hacking Detections 7 | . 2 3 2 Full Trace Events 5 | . 1 3 1 Feedback Events . | . . . . Feedback Blocked . | . . . . Robot Schematics Acquired . | . . . . Robots Built . | . . . . Authchips . | . . . . Time . | . . . . Total Robot Build Rating . | . . . . Part Schematics Acquired 6 | . . . 6 Parts Built . | . . . . Authchips . | . . . . Time . | . . . . Total Part Build Rating . | . . . . Parts Repaired 4 | . . 4 . Time 104 | . . 104 . Parts Recycled . | . . . . Recycled Matter . | . . . . Retrieved Matter . | . . . . Retrieved Components 3 | . 3 . . Parts Scanalyzed 6 | . . . 6 Part Schematics Acquired 6 | . . . 6 Parts Damaged . | . . . . Bothacking | -11 -10 -9 -8 ------------ Run | Scr Mat Mat Mat Used RIF Installer . | . . . . Robots Hacked 3 | . . . 3 Non-combat 2 | . . . 2 Combat 1 | . . . 1 Robot Hacks Applied 5 | . . . 5 parse_system 3 | . . . 3 no_distress 2 | . . . 2 Relay Couplers Released . | . . . . Fabnet Peak Effective % . | . . . . Robots Rewired . | . . . . Allies Hacked . | . . . . Hacks Repelled . | . . . . Allies | -11 -10 -9 -8 -------- Run | Scr Mat Mat Mat Total Allies . | . . . . Largest Group . | . . . . Highest-Rated Group . | . . . . Highest-Rated Ally . | . . . . Total Orders . | . . . . Ally Attacks . | . . . . Total Damage . | . . . . Kills . | . . . . Allies Corrupted . | . . . . Allies Melted . | . . . . Intel | -11 -10 -9 -8 ------- Run | Scr Mat Mat Mat Robot Analysis Total . | . . . . Derelict Logs Recovered . | . . . . Drone Launches . | . . . . Drone Recoveries . | . . . . Exploration | -11 -10 -9 -8 ------------- Run | Scr Mat Mat Mat Turns Passed 1839 | 60 220 512 1047 Spaces Moved 1752 | 45 293 555 859 Core 29 | 12 2 . 15 Treads . | . . . . Legs . | . . . . Wheels 691 | 33 11 . 647 Hover 1032 | . 280 555 197 Flight . | . . . . Fastest Speed 50 | 50 56 52 50 Average Speed 76 | 98 59 57 92 Slowest Speed 250 | 150 250 180 250 Overloaded Moves . | . . . . Propulsion Burnouts . | . . . . Robots Hopped . | . . . . Cave-ins Triggered . | . . . . Exploration Rate (%) 33 | 3 45 48 39 Regions Visited 3 Branch Regions . Pre-discovered Areas . | . . . . Known Exits Taken . | . . . . Unknown Exits Taken 3 | 1 1 1 . Scrap Searched . | . . . . Spaces Dug . | . . . . Terrain Destroyed 15 | . . . 15 Melee . | . . . . Projectile 1 | . . . 1 AOE 14 | . . . 14 Terrain Rammed . | . . . . Walls Destroyed . | . . . . Machines Disabled . | . . . . Actions | -11 -10 -9 -8 --------- Run | Scr Mat Mat Mat Total 2036 | 60 314 679 983 Wait 67 | 4 . 59 4 Move 1749 | 44 292 554 859 Hop . | . . . . Pick Up 29 | 6 4 11 8 Fast Attach 17 | . . 6 11 Attach 26 | 6 2 11 7 Detach 7 | . 2 2 3 Swap 3 | . . 1 2 Drop 12 | . 1 5 6 Fire 118 | . 13 30 75 Melee . | . . . . Ram 8 | . . . 8 Kick . | . . . . Crush . | . . . . Escape Stasis . | . . . . Rewire . | . . . . Trap . | . . . . Miscellaneous . | . . . . Route ------- -11/Scrapyard -10/Materials (discovered 3 exits: *Mat x2 / [*Min]) -9/Materials (discovered 2 exits: *Mat x2) -8/Materials History --------- Turn | Location | Event 33 | -11/Scrapyard | Discovered new exit (range 15) 61 | -11/Scrapyard | Entered Materials 90 | -10/Materials | Discovered new exit (range 10) 125 | -10/Materials | Discovered new exit (range 3) 173 | -10/Materials | Discovered new exit (range 16) 281 | -10/Materials | Entered another Materials area 281 | -9/Materials | Evolved 2 slots: Propulsion x1, Weapon x1 302 | -9/Materials | Build established: Mutant 409 | -9/Materials | Repaired Hover Unit? 475 | -9/Materials | Discovered new exit (range 12) 659 | -9/Materials | Build established: Gunner 668 | -9/Materials | Discovered new exit (range 15) 719 | -9/Materials | Repaired Hover Unit 747 | -9/Materials | Repaired Hover Unit 777 | -9/Materials | Repaired Hover Unit 793 | -9/Materials | Entered another Materials area 793 | -8/Materials | Evolved 2 slots: Power x1, Propulsion x1 1582 | -8/Materials | Lost 3 parts (1p2w) 1640 | -8/Materials | Lost 3 parts (2n1w) 1659 | -8/Materials | Core integrity fell below 50% 1787 | -8/Materials | Build established: Mutant 1822 | -8/Materials | Core integrity fell below 20% 1840 | -8/Materials | Destroyed by G-47 Trooper with Particle Gun Last Messages --------------- 01778_ K-01 Serf collects debris. 01787_ Dropped Remote Datajack. 01788_ Acquired Shotgun. 01790_ Wheel destroyed. 01800_ Arm. Wheel destroyed. 01809_ U-05 Engineer builds a Wall. 01809_ G-47 Trooper destroyed. 01818_ Shotgun destroyed. 01823_ Critical hit (Burn: +37). 01823_ R-06 Scavenger collects Aluminum Leg. 01826_ Hvy. Ion Cannon destroyed. 01826_ R-06 Scavenger collects Imp. Heat Sink. 01827_ Com. Wheel destroyed. 01830_ Critical hit (Burn: +37). 01830_ R-06 Scavenger collects Remote Datajack. 01831_ Critical hit (Burn: +37). 01832_ G-47 Trooper destroyed. 01832_ Imp. Heat Sink destroyed. 01835_ Hvy. Ion Cannon destroyed. 01836_ R-06 Scavenger suffers critical hit (Burn). Map ----- +----------------------------------------------------+ | ????????????????????????????????????????????# """" | | ????????????????????????????????????????????# """" | | ?????????????????????????????????????###????# | | ?????????????????????????????????????# ####### | | ?????????????????????????????????????# | | ?????????????????????????????????? | | ?????????????????????????????????????# | | ?????????????????????????????????????# ####### | | ?????????????????????????????????????####????????? | | ????????????????????????????????????????????###### | | ????????????????????????????????????????????# | | ????????????????????????????????????????????# | | ????????????????????????????????????????????## | | ????????????##########???????????????????????##### | | ????????????# #???????????????????????????? | | ????????????#= #???????????????????????????? | | ????????????# #???????????????????????????? | | ????????????# #???????????????????????????? | | ??#?????????# [[ #???###?????????????????????? | | ??# ????????# [ #??? ##????????????????????? | | ??# ????????# ! #### #????????????????????? | | ??# ???????# *%% # #????????????????????? | | ??# ??????# %=% # ??????????????????????? | | ### ####+######g###### ######+### #?#??????? | | g g #?# ?????? | | r @ #?# """"?? | | % % k #?# """""? | | ?##+####% ######+################# #?? """"?? | | ???????#! #???? ???????????????????????? """"?? | | ???????# #???? ""?????????????????????????"""??? | | ???????# #??? """???????????????????????? =??? | | ???????# #??? """????????????????????????#"#??? | | ???????# #?? ???????????????????????#%#??? | | ???????# ##########???????????????????????# #??? | | ???????# # #?????????????????????????# #### | | ???????# # #?????????????????????????# | | ???????# # ][#?????????????????????????# #### | | ???????# / ] ##????????????????????????# #??? | | ???????# # %#????????????????????????# #?## | | ???##### # ##???????????###########??# #?#/ | | ???#] #####+############### #?## ### | | ???#] #??# / #?# + | | ???#!! #??# ############ # #?# ## | | ???#!! #??# #??????????# # #?# ## | | ???#// #??# #??????????# # #?# ## | | ???#// #??# ##########?# # ### ## | | ######## #### # #?# # ## ## | | # #### # """ [#?# # ## | | # %![ # """ ### #####/###### | | + =% + """ + #????# | +----------------------------------------------------+ Best States ------------- Heat Dissipation 45 Energy Generation 14 Energy Capacity 250 Matter Stores 300 Matter Capacity 300 Sight Range 18 Terrain Scan Density 10 Resistance: KI 20 Resistance: TH 20 Resistance: EX 20 Resistance: EM 20 Resistance: I 20 Resistance: S 20 Resistance: P 20 Evasion (%) 54 Targeting Accuracy 11 Offensive Hacking 10 Item Schematics ----------------- Lgt. EM Pulse Cannon | -8/Materials | Scanalyzed Hover Unit | -8/Materials | Scanalyzed Imp. Hover Unit | -8/Materials | Scanalyzed Arm. Wheel | -8/Materials | Scanalyzed Imp. Targeting Computer | -8/Materials | Scanalyzed Hvy. Particle Gun | -8/Materials | Scanalyzed Robot Schematics ------------------ None Fabricated ------------ Nothing Alien Tech Used ----------------- None Achievements -------------- Safety First Challenges ------------ None Game ------ Seed ShrapnelSigixFalx Manual? 0 Play Time 00:43:14 Cumulative 7.5 hours Start 2022.09.25 @ 15:49:51 End 2022.10.01 @ 12:24:55 Sessions 7 Manual Loads 0 Difficulty Adventurer Special Mode None Game No. 5 Rogue 0 Adventurer 5 Explorer 0 Win Type - Total 0 Types 0/0/0/0/0/0/0/0/0 Lore% 12 Gallery% 12 Achievement% 14 Wizard Run 0 Options --------- ASCII 0 Keyboard 0 Movement Mouse Keybinds 0 Fullscreen 2 Font 18/X11 Map View 76x50 Tactical HUD 1 Map Filters NONE Filters NONE Steam 1 RUN: 9a5edd07-3da3-47b7-aea5-b614a9c4027b